[Event "MČR juniorů a juniorek v rapid šachu 2024"]
[Site "Hotel Fit Fun, Harrachov, Czech Republic"]
[Date "2024.09.22"]
[Round "7.24"]
[White "Hudik Martin"]
[Black "Koranda Kosma"]
[Result "0-1"]
[TimeControl "20+5"]
[WhiteFideId "23769947"]
[BlackFideId "23772948"]
[WhiteElo "1572"]
[BlackElo "1884"]

1. e4 {[%clk 00:20:08]} {[%emt 00:00:02]} e5 {[%clk 00:20:09]} {[%emt
00:00:02]} 2. Nf3 {[%clk 00:20:11]} Nc6 {[%clk 00:20:12]} {[%emt 00:00:02]} 3.
Bb5 {[%clk 00:20:15]} {[%emt 00:00:02]} a6 {[%clk 00:20:15]} {[%emt 00:00:02]}
4. Ba4 {[%clk 00:20:19]} {[%emt 00:00:01]} Nf6 {[%clk 00:20:18]} {[%emt
00:00:02]} 5. O-O {[%clk 00:20:21]} {[%emt 00:00:02]} Be7 {[%clk 00:20:20]}
{[%emt 00:00:03]} 6. Re1 {[%clk 00:20:24]} {[%emt 00:00:02]} b5 {[%clk
00:20:20]} {[%emt 00:00:05]} 7. Bb3 {[%clk 00:20:28]} {[%emt 00:00:01]} O-O
{[%clk 00:20:21]} {[%emt 00:00:04]} 8. c3 {[%clk 00:20:29]} {[%emt 00:00:04]}
d5 {[%clk 00:20:19]} {[%emt 00:00:07]} 9. exd5 {[%clk 00:20:29]} {[%emt
00:00:05]} Nxd5 {[%clk 00:20:21]} {[%emt 00:00:03]} 10. Nxe5 {[%clk 00:20:25]}
{[%emt 00:00:09]} Nxe5 {[%clk 00:20:23]} {[%emt 00:00:04]} 11. Rxe5 {[%clk
00:20:26]} {[%emt 00:00:03]} c6 {[%clk 00:20:25]} {[%emt 00:00:02]} 12. d4
{[%clk 00:20:19]} {[%emt 00:00:12]} Bd6 {[%clk 00:20:07]} {[%emt 00:00:23]} 13.
Re1 {[%clk 00:20:21]} {[%emt 00:00:04]} Qh4 {[%clk 00:19:37]} {[%emt 00:00:35]}
14. g3 {[%clk 00:20:24]} {[%emt 00:00:02]} Qh3 {[%clk 00:19:33]} {[%emt
00:00:09]} 15. Re4 {[%clk 00:20:22]} {[%emt 00:00:06]} g5 {[%clk 00:18:22]}
{[%emt 00:01:17]} 16. Qf1 {[%clk 00:15:05]} {[%emt 00:05:22]} Qh5 {[%clk
00:16:38]} {[%emt 00:01:47]} 17. Qe2 {[%clk 00:10:42]} {[%emt 00:04:29]} Qh3
{[%clk 00:11:55]} {[%emt 00:04:48]} 18. Bxg5 {[%clk 00:09:30]} {[%emt
00:01:17]} Qf5 {[%clk 00:06:52]} {[%emt 00:05:07]} 19. Bh6 {[%clk 00:06:29]}
{[%emt 00:03:08]} Nf6 {[%clk 00:05:54]} {[%emt 00:01:03]} 20. Bc2 {[%clk
00:04:56]} {[%emt 00:01:38]} Nxe4 {[%clk 00:04:47]} {[%emt 00:01:12]} 21. Bxe4
{[%clk 00:04:19]} {[%emt 00:00:42]} Re8 {[%clk 00:04:34]} {[%emt 00:00:18]} 22.
Bxf5 {[%clk 00:01:54]} {[%emt 00:02:31]} Rxe2 {[%clk 00:04:36]} {[%emt
00:00:02]} 23. Bxc8 {[%clk 00:01:36]} {[%emt 00:00:22]} Re1+ {[%clk 00:04:34]}
{[%emt 00:00:08]} 24. Kg2 {[%clk 00:01:29]} {[%emt 00:00:12]} Rxc8 {[%clk
00:04:37]} {[%emt 00:00:02]} 25. Bd2 {[%clk 00:00:30]} {[%emt 00:01:03]} Rd1
{[%clk 00:04:14]} {[%emt 00:00:28]} 26. Kf3 {[%clk 00:00:17]} {[%emt 00:00:18]}
Re8 {[%clk 00:03:36]} {[%emt 00:00:44]} 27. Be3 {[%clk 00:00:20]} {[%emt
00:00:02]} a5 {[%clk 00:02:57]} {[%emt 00:00:44]} 28. Ke2 {[%clk 00:00:19]}
{[%emt 00:00:05]} Rh1 {[%clk 00:02:57]} {[%emt 00:00:05]} 29. h4 {[%clk
00:00:20]} {[%emt 00:00:04]} f5 {[%clk 00:02:41]} {[%emt 00:00:22]} 30. Kd3
{[%clk 00:00:07]} {[%emt 00:00:17]} f4 {[%clk 00:02:09]} {[%emt 00:00:37]} 31.
gxf4 {[%clk 00:00:10]} {[%emt 00:00:02]} Rxh4 {[%clk 00:02:07]} {[%emt
00:00:07]} 32. Nd2 {[%clk 00:00:08]} {[%emt 00:00:07]} Bxf4 {[%clk 00:02:01]}
{[%emt 00:00:11]} 33. Rg1+ {[%clk 00:00:12]} {[%emt 00:00:02]} Kf7 {[%clk
00:01:45]} {[%emt 00:00:17]} 34. Nf3 {[%clk 00:00:14]} {[%emt 00:00:07]} Rh3
{[%clk 00:01:17]} {[%emt 00:00:33]} 35. Ng5+ {[%clk 00:00:14]} {[%emt
00:00:05]} Bxg5 {[%clk 00:01:17]} {[%emt 00:00:04]} 36. Rxg5 {[%clk 00:00:17]}
{[%emt 00:00:02]} Kf6 {[%clk 00:00:49]} {[%emt 00:00:31]} 37. Rc5 {[%clk
00:00:19]} {[%emt 00:00:05]} Re6 {[%clk 00:00:40]} {[%emt 00:00:14]} 38. Kc2
{[%clk 00:00:21]} {[%emt 00:00:03]} h5 {[%clk 00:00:32]} {[%emt 00:00:13]} 39.
Bg5+ {[%clk 00:00:19]} {[%emt 00:00:07]} Kg6 {[%clk 00:00:35]} {[%emt
00:00:02]} 40. Be3 {[%clk 00:00:22]} {[%emt 00:00:02]} Rh2 {[%clk 00:00:38]}
{[%emt 00:00:02]} 41. Kd3 {[%clk 00:00:25]} {[%emt 00:00:03]} h4 {[%clk
00:00:38]} {[%emt 00:00:04]} 42. Ke2 {[%clk 00:00:25]} {[%emt 00:00:06]} Rf6
{[%clk 00:00:26]} {[%emt 00:00:17]} 43. Kf1 {[%clk 00:00:18]} {[%emt 00:00:12]}
Rh1+ {[%clk 00:00:23]} {[%emt 00:00:08]} 44. Kg2 {[%clk 00:00:21]} {[%emt
00:00:02]} Rb1 {[%clk 00:00:25]} {[%emt 00:00:03]} 45. b3 {[%clk 00:00:19]}
{[%emt 00:00:07]} Rb2 {[%clk 00:00:27]} {[%emt 00:00:03]} 46. Rg5+ {[%clk
00:00:19]} {[%emt 00:00:05]} Kf7 {[%clk 00:00:26]} {[%emt 00:00:05]} 47. Rh5
{[%clk 00:00:22]} {[%emt 00:00:03]} Rg6+ {[%clk 00:00:20]} {[%emt 00:00:11]} 48.
Kf1 {[%clk 00:00:24]} {[%emt 00:00:02]} Rxa2 {[%emt 00:00:04]} 49. Rxh4 {[%clk
00:00:26]} {[%emt 00:00:02]} a4 {[%clk 00:00:25]} {[%emt 00:00:03]} 50. bxa4
{[%clk 00:00:26]} {[%emt 00:00:05]} bxa4 {[%clk 00:00:28]} {[%emt 00:00:01]} 51.
Rf4+ {[%clk 00:00:29]} {[%emt 00:00:03]} Kg7 {[%clk 00:00:32]} 52. Rf5 {[%clk
00:00:31]} {[%emt 00:00:03]} Rc2 {[%clk 00:00:34]} {[%emt 00:00:03]} 53. Ra5
{[%clk 00:00:29]} {[%emt 00:00:07]} Ra2 {[%clk 00:00:33]} {[%emt 00:00:05]} 54.
Ra7+ {[%clk 00:00:30]} {[%emt 00:00:05]} Kf6 {[%clk 00:00:31]} {[%emt
00:00:07]} 55. Ra6 {[%clk 00:00:33]} {[%emt 00:00:02]} Kf5 {[%clk 00:00:33]}
{[%emt 00:00:02]} 56. Ra5+ {[%clk 00:00:37]} {[%emt 00:00:01]} Ke4 {[%clk
00:00:33]} {[%emt 00:00:02]} 57. Re5+ {[%clk 00:00:17]} {[%emt 00:00:29]} Kd3
{[%clk 00:00:37]} {[%emt 00:00:01]} 58. f4 {[%clk 00:00:15]} {[%emt 00:00:07]}
Kxc3 {[%clk 00:00:35]} {[%emt 00:00:06]} 59. f5 {[%clk 00:00:15]} {[%emt
00:00:06]} Rg3 {[%clk 00:00:27]} {[%emt 00:00:13]} 60. Re6 {[%clk 00:00:13]}
{[%emt 00:00:06]} Rh3 {[%clk 00:00:21]} {[%emt 00:00:11]} 61. Kg1 {[%clk
00:00:12]} {[%emt 00:00:06]} Kd3 {[%clk 00:00:21]} {[%emt 00:00:05]} 62. Bg5
{[%clk 00:00:14]} {[%emt 00:00:04]} Kxd4 {[%clk 00:00:18]} {[%emt 00:00:07]} 63.
Bf6+ {[%clk 00:00:14]} {[%emt 00:00:05]} Kd5 {[%clk 00:00:17]} {[%emt
00:00:06]} 64. Re5+ {[%clk 00:00:17]} {[%emt 00:00:02]} Kd6 {[%clk 00:00:20]}
{[%emt 00:00:02]} 65. Re6+ {[%clk 00:00:21]} {[%emt 00:00:02]} Kd7 {[%clk
00:00:23]} {[%emt 00:00:02]} 66. Re7+ {[%clk 00:00:24]} {[%emt 00:00:02]} Kc8
{[%clk 00:00:25]} {[%emt 00:00:02]} 67. Re8+ {[%clk 00:00:28]} {[%emt
00:00:01]} Kb7 {[%clk 00:00:29]} 68. Re7+ {[%clk 00:00:31]} {[%emt 00:00:02]}
Kb6 {[%clk 00:00:33]} {[%emt 00:00:02]} 69. Bd4+ {[%clk 00:00:33]} {[%emt
00:00:03]} Kb5 {[%clk 00:00:36]} {[%emt 00:00:01]} 70. Rb7+ {[%clk 00:00:31]}
{[%emt 00:00:08]} Kc4 {[%clk 00:00:35]} {[%emt 00:00:04]} 71. Bg7 {[%clk
00:00:35]} {[%emt 00:00:02]} Rd3 {[%clk 00:00:31]} {[%emt 00:00:10]} 72. Rb1
{[%clk 00:00:33]} {[%emt 00:00:28]} Rc2 {[%clk 00:00:19]} 73. f6 {[%clk
00:00:34]} Rf3 {[%clk 00:00:18]} {[%emt 00:00:06]} 74. Rf1 {[%clk 00:00:32]}
{[%emt 00:00:07]} Rxf1+ {[%clk 00:00:16]} {[%emt 00:00:08]} 75. Kxf1 {[%clk
00:00:35]} {[%emt 00:00:01]} Rc3 {[%clk 00:00:10]} {[%emt 00:00:11]} 76. Kf2
{[%emt 00:00:58]} 0-1



[ePGN "0.1;DGT LiveChess/2.2.6"]

[Event "MČR juniorů a juniorek v rapid šachu 2024"]
[Site "Hotel Fit Fun, Harrachov, Czech Republic"]
[Date "2024.09.22"]
[Round "7.25"]
[White "Slivova Linda"]
[Black "Dorazilova Kristyna"]
[Result "1/2-1/2"]
[TimeControl "20+5"]
[WhiteFideId "23709294"]
[BlackFideId "23739142"]
[WhiteElo "1630"]
[BlackElo "1771"]

1. d4 {[%clk 00:20:07]} {[%emt 00:00:02]} d6 {[%clk 00:20:09]} {[%emt
00:00:01]} 2. Nf3 {[%clk 00:20:07]} {[%emt 00:00:06]} Bg4 {[%clk 00:19:52]}
{[%emt 00:00:22]} 3. Bf4 {[%clk 00:19:26]} {[%emt 00:00:46]} Nd7 {[%clk
00:19:50]} {[%emt 00:00:07]} 4. Nbd2 {[%clk 00:19:16]} {[%emt 00:00:15]} Ngf6
{[%clk 00:19:47]} {[%emt 00:00:08]} 5. c4 {[%clk 00:18:30]} {[%emt 00:00:51]}
e6 {[%clk 00:19:20]} {[%emt 00:00:32]} 6. Qb3 {[%clk 00:17:56]} {[%emt
00:00:39]} Qc8 {[%clk 00:18:48]} {[%emt 00:00:37]} 7. e4 {[%clk 00:16:19]}
{[%emt 00:01:43]} Bxf3 {[%clk 00:17:59]} {[%emt 00:00:54]} 8. Qxf3 {[%clk
00:16:20]} {[%emt 00:00:02]} e5 {[%clk 00:17:59]} {[%emt 00:00:06]} 9. Be3
{[%clk 00:13:54]} {[%emt 00:02:30]} Be7 {[%clk 00:18:01]} {[%emt 00:00:04]} 10.
Bd3 {[%clk 00:13:06]} {[%emt 00:00:53]} exd4 {[%clk 00:17:58]} {[%emt
00:00:08]} 11. Bxd4 {[%clk 00:13:07]} {[%emt 00:00:03]} Ne5 {[%clk 00:18:02]}
{[%emt 00:00:02]} 12. Qe2 {[%clk 00:13:05]} {[%emt 00:00:06]} O-O {[%clk
00:16:24]} {[%emt 00:01:44]} 13. Bc2 {[%clk 00:12:52]} {[%emt 00:00:19]} Nc6
{[%clk 00:16:05]} {[%emt 00:00:23]} 14. Bc3 {[%clk 00:12:55]} {[%emt 00:00:02]}
Nd7 {[%clk 00:15:55]} {[%emt 00:00:15]} 15. O-O {[%clk 00:12:48]} {[%emt
00:00:11]} Bf6 {[%clk 00:16:00]} {[%emt 00:00:02]} 16. Bxf6 {[%clk 00:12:25]}
{[%emt 00:00:28]} Nxf6 {[%clk 00:16:04]} {[%emt 00:00:01]} 17. Qe3 {[%clk
00:10:19]} {[%emt 00:02:10]} Re8 {[%clk 00:16:08]} {[%emt 00:00:01]} 18. f3
{[%clk 00:10:01]} {[%emt 00:00:23]} Ne5 {[%clk 00:15:45]} {[%emt 00:00:28]} 19.
Rac1 {[%clk 00:09:33]} {[%emt 00:00:33]} a5 {[%clk 00:14:24]} {[%emt 00:01:26]}
20. Rfd1 {[%clk 00:08:49]} {[%emt 00:00:49]} Qe6 {[%clk 00:14:02]} {[%emt
00:00:27]} 21. Bb1 {[%clk 00:08:31]} {[%emt 00:00:24]} b6 {[%clk 00:12:40]}
{[%emt 00:01:26]} 22. Qf2 {[%clk 00:08:32]} {[%emt 00:00:03]} Nh5 {[%clk
00:11:55]} {[%emt 00:00:51]} 23. b3 {[%clk 00:07:25]} {[%emt 00:01:13]} Nf4
{[%clk 00:11:42]} {[%emt 00:00:17]} 24. Nf1 {[%clk 00:07:29]} a4 {[%clk
00:10:43]} {[%emt 00:01:05]} 25. Ne3 {[%clk 00:07:10]} {[%emt 00:00:24]} axb3
{[%clk 00:10:05]} {[%emt 00:00:44]} 26. axb3 {[%clk 00:07:13]} Ra7 {[%clk
00:08:59]} {[%emt 00:01:11]} 27. Nd5 {[%clk 00:07:12]} {[%emt 00:00:06]} Nxd5
{[%clk 00:09:02]} {[%emt 00:00:02]} 28. exd5 {[%clk 00:07:13]} {[%emt
00:00:04]} Qf6 {[%clk 00:08:36]} {[%emt 00:00:31]} 29. Qc2 {[%clk 00:06:33]}
{[%emt 00:00:45]} Ng6 {[%clk 00:08:00]} {[%emt 00:00:40]} 30. Re1 {[%clk
00:06:37]} {[%emt 00:00:02]} Raa8 {[%clk 00:08:04]} {[%emt 00:00:01]} 31. Re4
{[%clk 00:06:24]} {[%emt 00:00:18]} Re5 {[%clk 00:07:12]} {[%emt 00:00:57]} 32.
Rce1 {[%clk 00:05:53]} {[%emt 00:00:35]} Rae8 {[%clk 00:07:16]} {[%emt
00:00:01]} 33. b4 {[%clk 00:05:03]} {[%emt 00:00:55]} Rxe4 {[%clk 00:07:13]}
{[%emt 00:00:09]} 34. Rxe4 {[%clk 00:05:05]} {[%emt 00:00:02]} Rxe4 {[%clk
00:07:17]} {[%emt 00:00:02]} 35. Qxe4 {[%clk 00:05:09]} {[%emt 00:00:02]} Qe5
{[%clk 00:07:21]} 36. Qxe5 {[%clk 00:04:23]} {[%emt 00:00:50]} Nxe5 {[%clk
00:07:24]} {[%emt 00:00:01]} 37. Ba2 {[%clk 00:04:27]} {[%emt 00:00:01]} Kf8
{[%clk 00:07:26]} {[%emt 00:00:03]} 38. Kf1 {[%clk 00:04:25]} {[%emt 00:00:07]}
Ke7 {[%clk 00:06:59]} {[%emt 00:00:32]} 39. Ke2 {[%clk 00:04:29]} {[%emt
00:00:01]} Kf6 {[%clk 00:06:45]} {[%emt 00:00:19]} 40. Ke3 {[%clk 00:04:25]}
{[%emt 00:00:09]} Ng6 {[%clk 00:05:27]} {[%emt 00:01:23]} 41. g3 {[%clk
00:04:11]} {[%emt 00:00:19]} Ne7 {[%clk 00:05:28]} {[%emt 00:00:04]} 42. Bb1
{[%clk 00:04:06]} {[%emt 00:00:11]} h6 {[%clk 00:04:51]} {[%emt 00:00:41]} 43.
g4 {[%clk 00:03:32]} {[%emt 00:00:39]} h5 {[%clk 00:04:31]} {[%emt 00:00:25]}
44. h3 {[%clk 00:01:36]} {[%emt 00:02:00]} hxg4 {[%clk 00:04:34]} {[%emt
00:00:03]} 45. hxg4 {[%clk 00:01:34]} {[%emt 00:00:07]} Ng6 {[%clk 00:04:18]}
{[%emt 00:00:20]} 46. Bxg6 {[%emt 00:00:22]} Kxg6 {[%clk 00:04:22]} {[%emt
00:00:01]} 47. f4 {[%clk 00:01:19]} {[%emt 00:00:05]} Kf6 {[%clk 00:04:07]}
{[%emt 00:00:19]} 48. Kd4 {[%clk 00:01:10]} {[%emt 00:00:13]} g6 {[%clk
00:03:29]} {[%emt 00:00:43]} 49. c5 {[%clk 00:00:53]} {[%emt 00:00:23]} b5
{[%emt 00:01:09]} 50. Ke4 {[%emt 00:00:06]} g5 51. f5 1/2-1/2



[ePGN "0.1;DGT LiveChess/2.2.6"]

[Event "MČR juniorů a juniorek v rapid šachu 2024"]
[Site "Hotel Fit Fun, Harrachov, Czech Republic"]
[Date "2024.09.22"]
[Round "7.26"]
[White "Hyam Robin"]
[Black "Nespora Tatana"]
[Result "0-1"]
[TimeControl "20+5"]
[WhiteFideId "23773413"]
[BlackFideId "392286"]
[WhiteElo "1571"]
[BlackElo "1697"]

1. e4 {[%clk 00:20:05]} {[%emt 00:00:03]} c5 {[%clk 00:20:06]} {[%emt
00:00:05]} 2. b3 {[%clk 00:20:04]} {[%emt 00:00:06]} Nc6 {[%clk 00:19:54]}
{[%emt 00:00:17]} 3. Bb2 {[%clk 00:20:07]} {[%emt 00:00:01]} d6 {[%clk
00:19:55]} {[%emt 00:00:04]} 4. Bb5 {[%clk 00:20:09]} {[%emt 00:00:03]} Bd7
{[%clk 00:19:44]} {[%emt 00:00:16]} 5. f4 {[%clk 00:20:14]} Nd4 {[%clk
00:18:38]} {[%emt 00:01:12]} 6. Bxd7+ {[%clk 00:20:08]} {[%emt 00:00:12]} Qxd7
{[%clk 00:18:40]} {[%emt 00:00:02]} 7. d3 {[%clk 00:18:47]} {[%emt 00:01:25]}
e5 {[%clk 00:16:03]} {[%emt 00:02:43]} 8. Nf3 {[%clk 00:17:09]} {[%emt
00:01:43]} Qc7 {[%clk 00:15:56]} {[%emt 00:00:13]} 9. fxe5 {[%clk 00:16:13]}
{[%emt 00:01:01]} dxe5 {[%clk 00:15:57]} {[%emt 00:00:03]} 10. O-O {[%clk
00:16:11]} {[%emt 00:00:07]} Nf6 {[%clk 00:14:47]} {[%emt 00:01:16]} 11. Nbd2
{[%clk 00:15:11]} {[%emt 00:01:04]} Be7 {[%clk 00:13:30]} {[%emt 00:01:22]} 12.
Nc4 {[%clk 00:14:54]} {[%emt 00:00:21]} Nd7 {[%clk 00:13:33]} {[%emt 00:00:03]}
13. Ne3 {[%clk 00:13:45]} {[%emt 00:01:14]} Nb6 {[%clk 00:12:35]} {[%emt
00:01:03]} 14. a4 {[%clk 00:11:32]} {[%emt 00:02:18]} a5 {[%clk 00:12:38]}
{[%emt 00:00:02]} 15. c3 {[%clk 00:10:16]} {[%emt 00:01:22]} Ne6 {[%clk
00:08:57]} {[%emt 00:03:45]} 16. Nf5 {[%clk 00:08:18]} {[%emt 00:02:04]} Bf6
{[%clk 00:07:07]} {[%emt 00:01:55]} 17. Ne3 {[%clk 00:06:08]} {[%emt 00:02:15]}
Rd8 {[%clk 00:06:11]} {[%emt 00:01:00]} 18. Ng4 {[%clk 00:05:54]} {[%emt
00:00:19]} Qd6 {[%clk 00:04:14]} {[%emt 00:02:02]} 19. Nxf6+ {[%clk 00:05:28]}
{[%emt 00:00:32]} gxf6 {[%clk 00:04:18]} 20. Ne1 {[%clk 00:04:08]} {[%emt
00:01:25]} Nf4 {[%clk 00:04:02]} {[%emt 00:00:20]} 21. Rf3 {[%clk 00:03:39]}
{[%emt 00:00:34]} Ke7 {[%clk 00:03:08]} {[%emt 00:01:00]} 22. Bc1 {[%clk
00:02:55]} {[%emt 00:00:48]} c4 {[%clk 00:02:04]} {[%emt 00:01:09]} 23. Ba3
{[%clk 00:02:54]} {[%emt 00:00:06]} cxd3 {[%clk 00:01:43]} {[%emt 00:00:26]} 24.
Bxd6+ {[%clk 00:02:58]} {[%emt 00:00:01]} Rxd6 {[%clk 00:01:47]} 25. c4 {[%clk
00:02:11]} {[%emt 00:00:53]} Nd7 {[%clk 00:01:38]} {[%emt 00:00:13]} 26. Ra2
{[%clk 00:01:57]} {[%emt 00:00:19]} Nc5 {[%clk 00:01:41]} {[%emt 00:00:02]} 27.
Rd2 {[%clk 00:01:27]} {[%emt 00:00:35]} Rhd8 {[%clk 00:01:45]} {[%emt
00:00:01]} 28. g3 {[%clk 00:00:45]} {[%emt 00:00:47]} Nh3+ {[%clk 00:01:36]}
{[%emt 00:00:14]} 29. Kg2 {[%clk 00:00:46]} {[%emt 00:00:04]} Ng5 {[%clk
00:01:39]} {[%emt 00:00:02]} 30. Rff2 {[%clk 00:00:16]} {[%emt 00:00:35]} Ngxe4
{[%clk 00:01:42]} {[%emt 00:00:02]} 31. Kg1 {[%clk 00:00:09]} {[%emt 00:00:12]}
Nxf2 {[%clk 00:01:11]} {[%emt 00:00:36]} 32. Kxf2 {[%clk 00:00:09]} {[%emt
00:00:05]} Ne4+ {[%clk 00:01:11]} {[%emt 00:00:05]} 33. Kg1 {[%clk 00:00:12]}
{[%emt 00:00:01]} Nc3 {[%clk 00:01:03]} {[%emt 00:00:14]} 34. Qa1 {[%clk
00:00:07]} {[%emt 00:00:09]} Ne2+ {[%clk 00:00:50]} {[%emt 00:00:19]} 35. Kg2
{[%clk 00:00:07]} {[%emt 00:00:04]} e4 {[%clk 00:00:52]} {[%emt 00:00:04]} 36.
Kf1 {[%clk 00:00:07]} {[%emt 00:00:05]} Nd4 {[%clk 00:00:46]} {[%emt 00:00:11]}
37. Ng2 {[%clk 00:00:07]} {[%emt 00:00:06]} Nf3 {[%clk 00:00:46]} {[%emt
00:00:05]} 38. Rf2 {[%clk 00:00:07]} {[%emt 00:00:05]} Nxh2+ {[%clk 00:00:36]}
{[%emt 00:00:15]} 39. Kg1 {[%clk 00:00:10]} Nf3+ {[%clk 00:00:40]} {[%emt
00:00:02]} 40. Kh1 {[%clk 00:00:11]} {[%emt 00:00:03]} d2 {[%clk 00:00:26]}
{[%emt 00:00:20]} 41. Ne3 {[%clk 00:00:15]} {[%emt 00:00:01]} Rd3 {[%clk
00:00:22]} {[%emt 00:00:09]} 42. Nd5+ {[%clk 00:00:14]} {[%emt 00:00:05]} R8xd5
{[%clk 00:00:24]} {[%emt 00:00:04]} 43. cxd5 {[%clk 00:00:19]} {[%emt
00:00:01]} d1=Q+ {[%clk 00:00:26]} {[%emt 00:00:02]} 44. Rf1 {[%clk 00:00:18]}
{[%emt 00:00:06]} Qe2 {[%clk 00:00:27]} {[%emt 00:00:04]} 45. d6+ {[%clk
00:00:20]} {[%emt 00:00:04]} Kd7 {[%clk 00:00:26]} {[%emt 00:00:06]} 46. Rxf3
{[%clk 00:00:15]} {[%emt 00:00:09]} Qxf3+ {[%clk 00:00:28]} {[%emt 00:00:04]}
47. Kh2 {[%clk 00:00:18]} {[%emt 00:00:01]} Qxg3+ {[%clk 00:00:29]} {[%emt
00:00:04]} 48. Kh1 {[%clk 00:00:22]} {[%emt 00:00:01]} Rd2 {[%clk 00:00:26]}
{[%emt 00:00:08]} 49. Qf1 {[%clk 00:00:23]} {[%emt 00:00:04]} Qh2# {[%clk
00:00:29]} {[%emt 00:00:02]} 0-1



[ePGN "0.1;DGT LiveChess/2.2.6"]